fUSD/lending_fUSD_20241219
["ID","MTS","AMOUNT","RATE_DAILY","PERIOD"]
[345979134,1734593962437,500.0,0.00021967,2]
[345979135,1734593962481,500.0,0.00021967,2]
[345979136,1734593962512,500.0,0.00021967,2]
[345979137,1734593962560,500.0,0.00021967,2]
[345979138,1734593962607,500.0,0.00021967,2]
[345979139,1734593962632,500.0,0.00021967,2]
[345979140,1734593962661,500.0,0.00021967,2]
[345979141,1734593962700,500.0,0.00021967,2]
[345979142,1734593962734,500.0,0.00021967,2]
[345979143,1734593962766,500.0,0.00021967,2]
[345979144,1734593962797,500.0,0.00021967,2]
[345979145,1734593962822,500.0,0.00021967,2]
[345979146,1734593962888,500.0,0.00021967,2]
[345979147,1734593962952,500.0,0.00021967,2]
[345979148,1734593963013,500.0,0.00021967,2]
[345979149,1734593963540,500.0,0.00021917,4]
[345979150,1734593963870,500.0,0.00021967,2]
[345979151,1734593964121,500.0,0.00021917,4]
[345979152,1734593964209,500.0,0.00021967,2]
[345979153,1734593964563,500.0,0.00021967,2]
[345979154,1734593965524,500.0,0.00021967,2]
[345979155,1734593965832,500.0,0.00021967,2]
[345979156,1734593965992,939.2,0.00021917,4]
[345979157,1734593966053,2491.80303433,0.000219,2]
[345979158,1734593966233,500.0,0.00021917,4]
[345979159,1734593966848,500.0,0.00021967,2]
[345979160,1734593967187,500.0,0.00021999,4]
[345979161,1734593967213,500.0,0.00021917,4]
[345979162,1734593967474,500.0,0.00021967,2]
[345979163,1734593967815,500.0,0.00021967,2]
[345979164,1734593968156,500.0,0.00021967,2]
[345979165,1734593968513,500.0,0.00021967,2]
[345979166,1734593968872,500.0,0.00021917,4]
[345979167,1734593969332,500.0,0.00021967,2]
[345979168,1734593970164,500.0,0.00021967,2]
[345979169,1734593970512,500.0,0.00021967,2]
[345979170,1734593970699,500.0,0.00021917,4]
[345979171,1734593970855,500.0,0.00021967,2]
[345979172,1734593971185,500.0,0.00021967,2]
[345979173,1734593971309,500.0,0.00021917,4]
[345979174,1734593971688,500.0,0.00021967,2]
[345979175,1734593972717,500.0,0.00021967,2]
[345979176,1734593972862,500.0,0.00021967,2]
[345979177,1734593973225,500.0,0.00021917,4]
[345979178,1734593973720,500.0,0.00021967,2]
[345979179,1734593973767,500.0,0.00021999,4]
[345979180,1734593974043,500.0,0.00021967,2]
[345979181,1734593974224,500.0,0.00021917,4]
[345979182,1734593974383,500.0,0.00021967,2]
[345979183,1734593974765,500.0,0.00021917,4]
[345979184,1734593975250,500.0,0.00021967,2]
[345979185,1734593975605,500.0,0.00021967,2]
[345979186,1734593975951,500.0,0.00021967,2]
[345979187,1734593976854,500.0,0.00021967,2]
[345979188,1734593976956,3553.87,0.00021917,4]
[345979189,1734593977714,500.0,0.00021967,2]
[345979190,1734593977922,503.5280905,0.00021917,4]
[345979191,1734593978067,500.0,0.00021967,2]
[345979192,1734593978294,781.89,0.00021917,4]
[345979193,1734593978383,500.0,0.00021967,2]
[345979194,1734593978485,500.0,0.00021917,4]
[345979195,1734593978725,500.0,0.00021967,2]
[345979196,1734593979050,500.0,0.00021967,2]
[345979197,1734593979890,500.0,0.00021967,2]
[345979198,1734593980239,500.0,0.00021967,2]
[345979199,1734593980568,500.0,0.00021967,2]
[345979200,1734593982126,500.0,0.00021999,4]
[345979201,1734593984767,1295.13,0.00021917,4]
[345979202,1734593985156,514.06309706,0.00021917,4]
[345979203,1734593985183,500.0,0.00021999,4]
[345979204,1734593986530,506.38373878,0.00021917,4]
[345979205,1734593987826,500.0,0.00021917,4]
[345979206,1734593988139,500.0,0.00021999,4]
[345979207,1734593988303,500.0,0.00021917,4]
[345979208,1734593988578,500.0,0.00021917,4]
[345979209,1734593989533,500.0,0.00021917,4]
[345979210,1734593990580,500.0,0.00021917,4]
[345979211,1734593994367,587.44,0.00021917,4]
[345979212,1734593994523,500.0,0.00021917,4]
[345979213,1734593995383,1162.62,0.00021999,4]
[345979214,1734593998151,500.0,0.00021917,4]
[345979215,1734593998179,517.70580507,0.00021917,4]
[345979216,1734593998498,500.0,0.00021917,4]
[345979217,1734594000466,505.44273713,0.00021917,4]
[345979218,1734594000933,500.0,0.00021917,4]
[345979219,1734594000963,500.0,0.00021917,4]
[345979220,1734594002191,500.0,0.00021917,4]
[345979221,1734594002704,500.0,0.00021917,4]
[345979222,1734594003140,509.22778595,0.00021917,4]
[345979223,1734594003979,505.3726564,0.00021917,4]
[345979224,1734594004512,939.61,0.00021999,4]
[345979225,1734594004876,507.17457539,0.00021917,4]
[345979226,1734594005422,6993.92109379,0.00021418,2]
[345979227,1734594032916,-250.0,0.00021331,2]
[345979228,1734594032940,-4887.87890621,0.00021418,2]
[345979229,1734594032968,-500.0,0.00021917,4]
[345979230,1734594032996,-992.27,0.00021917,4]
[345979231,1734594033020,-500.0,0.00021917,4]
[345979232,1734594033044,-500.0,0.00021917,4]
[345979233,1734594033068,-500.0,0.00021917,4]
[345979234,1734594033092,-501.89738993,0.00021917,4]
[345979235,1734594033115,-500.0,0.00021917,4]
[345979236,1734594033140,-500.0,0.00021917,4]
[345979237,1734594033164,-500.0,0.00021917,4]
[345979238,1734594033188,-546.7,0.00021917,4]
[345979239,1734594033212,-739.88,0.00021917,4]
[345979240,1734594033236,-500.0,0.00021917,4]
[345979241,1734594033261,-500.0,0.00021917,4]
[345979242,1734594033284,-515.27065078,0.00021917,4]
[345979243,1734594033307,-500.0,0.00021917,4]
[345979244,1734594033330,-500.0,0.00021917,4]
[345979245,1734594033356,-898.61,0.00021917,4]
[345979246,1734594033379,-583.49,0.00021917,4]
[345979247,1734594033404,-500.0,0.00021917,4]
[345979248,1734594033428,-500.0,0.00021917,4]
[345979249,1734594033452,-624.12892852,0.00021917,4]
[345979250,1734594033476,-500.0,0.00021917,4]
[345979251,1734594033503,-500.0,0.00021917,4]
[345979252,1734594033527,-500.0,0.00021967,2]
[345979253,1734594033550,-500.0,0.00021967,2]
[345979254,1734594033573,-500.0,0.00021967,2]
[345979255,1734594033596,-500.0,0.00021967,2]
[345979256,1734594033620,-500.0,0.00021967,2]
[345979257,1734594033643,-500.0,0.00021967,2]
[345979258,1734594033666,-500.0,0.00021967,2]
[345979259,1734594033689,-500.0,0.00021967,2]
[345979260,1734594033712,-500.0,0.00021967,2]
[345979261,1734594033734,-500.0,0.00021967,2]
[345979262,1734594033758,-500.0,0.00021967,2]
[345979263,1734594033782,-500.0,0.00021967,2]
[345979264,1734594033806,-500.0,0.00021967,2]
[345979265,1734594033830,-500.0,0.00021967,2]
[345979266,1734594033853,-500.0,0.00021967,2]
[345979267,1734594033876,-500.0,0.00021967,2]
[345979268,1734594033900,-500.0,0.00021967,2]
[345979269,1734594033927,-150.0,0.0002199,2]
[345979270,1734594033951,-3884.0,0.0002199,2]
[345979271,1734594033974,-9298.87412456,0.0002199,2]
[345979273,1734594337020,153.57,0.00010137,2]
[345979274,1734594337454,153.57,0.00016813,2]
[345979277,1734594565430,-808.88,0.00019294,2]
[345979278,1734594565454,-150.0,0.00020877,2]
[345979279,1734594565483,-153.0,0.00020896,2]
[345979280,1734594565506,-153.0,0.00020896,2]
[345979281,1734594565532,-153.0,0.00020896,2]
[345979282,1734594565555,-153.0,0.00020896,2]
[345979283,1734594565578,-153.0,0.00020896,2]
[345979284,1734594565601,-153.0,0.00020896,2]
[345979285,1734594565624,-419.812,0.000209,2]
[345979286,1734594565647,-180.89,0.00020904,2]
[345979287,1734594565671,-155.85,0.00020957,2]
[345979288,1734594565693,-250.0,0.00020984,2]
[345979289,1734594565719,-500.0,0.00021,2]
[345979290,1734594565742,-1000.0,0.00021212,2]
[345979291,1734594565766,-688.2,0.00021232,2]
[345979292,1734594565788,-214.32,0.0002131,2]
[345979293,1734594565811,-300.0,0.00021499,2]
[345979294,1734594565832,-500.0,0.000215,2]
[345979295,1734594565854,-74333.0,0.00021532,2]
[345979296,1734594565876,-808.88,0.00021558,2]
[345979297,1734594565900,-13222.51339185,0.0002189,2]
[345979298,1734594565924,-503.63,0.00021896,2]
[345979299,1734594565948,-509.48,0.00021896,2]
[345979300,1734594565974,-506.88,0.00021896,2]
[345979301,1734594565997,-492.26,0.00021896,2]
[345979302,1734594566020,-493.21,0.00021896,2]
[345979303,1734594566044,-495.8,0.00021896,2]
[345979304,1734594566067,-500.0,0.00021917,4]
[345979305,1734594566090,-502.38616236,0.00021917,4]
[345979306,1734594566114,-500.0,0.00021917,4]
[345979307,1734594566138,-500.0,0.00021917,4]
[345979308,1734594566164,-500.0,0.00021917,4]
[345979309,1734594566187,-500.0,0.00021917,4]
[345979310,1734594566215,-500.0,0.00021917,4]
[345979311,1734594566238,-500.0,0.00021917,4]
[345979312,1734594566262,-500.0,0.00021917,4]
[345979313,1734594566284,-500.0,0.00021917,4]
[345979314,1734594566308,-500.0,0.00021917,4]
[345979315,1734594566330,-500.0,0.00021917,4]
[345979316,1734594566352,-500.0,0.00021917,4]
[345979317,1734594566375,-500.0,0.00021917,4]
[345979318,1734594566401,-500.0,0.00021917,4]
[345979319,1734594566424,-500.0,0.00021917,4]
[345979320,1734594566447,-500.0,0.00021917,4]
[345979321,1734594566474,-500.0,0.00021917,4]
[345979322,1734594566497,-500.0,0.00021917,4]
[345979323,1734594566520,-591.66,0.00021917,4]
[345979324,1734594566545,-500.0,0.00021917,4]
[345979325,1734594566568,-500.0,0.00021917,4]
[345979326,1734594566593,-507.88602402,0.00021917,4]
[345979327,1734594566618,-500.0,0.00021917,4]
[345979328,1734594566641,-500.0,0.00021917,4]
[345979329,1734594566664,-500.0,0.00021917,4]
[345979330,1734594566688,-500.0,0.00021917,4]
[345979331,1734594566716,-500.0,0.00021917,4]
[345979332,1734594566739,-500.0,0.00021917,4]
[345979333,1734594566762,-500.0,0.00021917,4]
[345979334,1734594566784,-511.38756144,0.00021917,4]
[345979335,1734594566807,-500.0,0.00021917,4]
[345979336,1734594566831,-500.0,0.00021917,4]
[345979337,1734594567062,-500.0,0.00021917,4]
[345979338,1734594567086,-500.0,0.00021917,4]
[345979339,1734594567110,-500.0,0.00021917,4]
[345979340,1734594567147,-500.0,0.00021917,4]
[345979341,1734594567173,-504.01984543,0.00021917,4]
[345979342,1734594567198,-500.0,0.00021917,4]
[345979343,1734594567228,-500.0,0.00021917,4]
[345979344,1734594567254,-500.0,0.00021917,4]
[345979345,1734594567278,-500.0,0.00021917,4]
[345979346,1734594567303,-500.0,0.00021917,4]
[345979347,1734594567330,-500.0,0.00021917,4]
[345979348,1734594567355,-520.79817281,0.00021917,4]
[345979349,1734594567379,-624.73067753,0.00021917,4]
[345979350,1734594567402,-500.0,0.00021917,4]
[345979351,1734594567425,-503.63375535,0.00021917,4]
[345979352,1734594567449,-637.0,0.00021917,4]
[345979353,1734594567479,-507.11324425,0.00021917,4]
[345979354,1734594567502,-500.0,0.00021917,4]
[345979355,1734594567526,-500.0,0.00021917,4]
[345979356,1734594567549,-500.0,0.00021917,4]
[345979357,1734594567574,-500.0,0.00021917,4]
[345979358,1734594567597,-500.0,0.00021917,4]
[345979359,1734594567621,-500.0,0.00021917,4]
[345979360,1734594567644,-500.0,0.00021917,4]
[345979361,1734594567668,-500.0,0.00021917,4]
[345979362,1734594567692,-500.0,0.00021917,4]
[345979363,1734594567721,-500.0,0.00021917,4]
[345979364,1734594567744,-500.0,0.00021917,4]
[345979365,1734594567773,-500.0,0.00021917,4]
[345979366,1734594567798,-500.0,0.00021917,4]
[345979367,1734594567823,-500.0,0.00021917,4]
[345979368,1734594567848,-500.0,0.00021917,4]
[345979369,1734594567873,-500.0,0.00021917,4]
[345979370,1734594567897,-506.00722312,0.00021917,4]
[345979371,1734594567921,-500.0,0.00021917,4]
[345979372,1734594567945,-500.0,0.00021917,4]
[345979373,1734594567971,-500.0,0.00021917,4]
[345979374,1734594567995,-500.0,0.00021917,4]
[345979375,1734594568018,-505.41983152,0.00021917,4]
[345979376,1734594568042,-505.02686375,0.00021917,4]
[345979377,1734594568066,-500.0,0.00021917,4]
[345979378,1734594568089,-500.0,0.00021917,4]
[345979379,1734594568114,-506.0099704,0.00021917,4]
[345979380,1734594568138,-503.68468542,0.00021917,4]
[345979381,1734594568161,-500.0,0.00021917,4]
[345979382,1734594568188,-500.0,0.00021917,4]
[345979383,1734594568211,-500.0,0.00021917,4]
[345979384,1734594568238,-504.50405909,0.00021917,4]
[345979385,1734594568262,-506.6501621,0.00021917,4]
[345979386,1734594568285,-500.0,0.00021917,4]
[345979387,1734594568309,-500.0,0.00021917,4]
[345979388,1734594568334,-556.33,0.00021917,4]
[345979389,1734594568358,-500.0,0.00021917,4]
[345979390,1734594568382,-503.89421481,0.00021917,4]
[345979391,1734594568405,-504.63558177,0.00021917,4]
[345979392,1734594568432,-503.40141622,0.00021917,4]
[345979393,1734594568456,-500.0,0.00021917,4]
[345979394,1734594568486,-500.0,0.00021917,4]
[345979395,1734594568509,-500.0,0.00021917,4]
[345979396,1734594568533,-500.0,0.00021917,4]
[345979397,1734594568557,-500.0,0.00021917,4]
[345979398,1734594568582,-500.0,0.00021917,4]
[345979399,1734594568605,-500.0,0.00021917,4]
[345979400,1734594568628,-500.0,0.00021917,4]
[345979401,1734594568651,-500.0,0.00021917,4]
[345979402,1734594568674,-500.0,0.00021917,4]
[345979403,1734594568697,-500.0,0.00021917,4]
[345979404,1734594568724,-500.0,0.00021917,4]
[345979405,1734594568747,-500.0,0.00021917,4]
[345979406,1734594568769,-506.34491881,0.00021917,4]
[345979407,1734594568791,-500.0,0.00021917,4]
[345979408,1734594568814,-500.0,0.00021917,4]
[345979409,1734594568836,-500.0,0.00021917,4]
[345979410,1734594568861,-510.26729955,0.00021917,4]
[345979411,1734594568883,-500.0,0.00021917,4]
[345979412,1734594568907,-500.0,0.00021917,4]
[345979413,1734594568930,-500.0,0.00021917,4]
[345979414,1734594568953,-500.0,0.00021917,4]
[345979415,1734594568981,-504.63512975,0.00021917,4]
[345979416,1734594569005,-500.0,0.00021917,4]
[345979417,1734594569028,-500.0,0.00021917,7]
[345979418,1734594569050,-500.0,0.00021917,4]
[345979419,1734594569074,-500.0,0.00021917,4]
[345979420,1734594569097,-513.08786469,0.00021917,4]
[345979421,1734594569121,-500.0,0.00021917,4]
[345979422,1734594569144,-500.0,0.00021917,4]
[345979423,1734594569170,-500.0,0.00021917,4]
[345979424,1734594569193,-500.0,0.00021917,2]
[345979425,1734594569220,-516.95776913,0.00021917,4]
[345979426,1734594569243,-500.0,0.00021917,4]
[345979427,1734594569267,-500.0,0.00021917,4]
[345979428,1734594569291,-500.0,0.00021917,4]
[345979429,1734594569315,-175.52291427,0.00021917,4]
[345979430,1734594569338,-500.0,0.00021917,4]
[345979431,1734594569362,-500.0,0.00021917,4]
[345979432,1734594569385,-500.0,0.00021917,4]
[345979433,1734594569408,-500.0,0.00021917,4]
[345979434,1734594569432,-500.0,0.00021917,4]
[345979435,1734594569456,-500.0,0.00021917,4]
[345979436,1734594569484,-500.0,0.00021917,4]
[345979437,1734594569507,-500.0,0.00021917,4]
[345979438,1734594569532,-500.0,0.00021917,4]
[345979439,1734594569556,-580.17830721,0.00021917,4]
[345979440,1734594569580,-500.0,0.00021917,4]
[345979441,1734594569602,-500.0,0.00021917,4]
[345979442,1734594569627,-500.0,0.00021917,4]
[345979443,1734594569649,-189.28711592,0.00021917,4]
[345979444,1734594569673,-500.0,0.00021917,4]
[345979445,1734594569696,-500.0,0.00021917,4]
[345979446,1734594569730,-500.0,0.00021917,4]
[345979447,1734594569760,-500.0,0.00021917,4]
[345979448,1734594569785,-412.93383743,0.00021917,4]
[345979449,1734594620559,186.68,0.00016712,2]
[345979450,1734594627147,-2235.661958,0.00021807,2]
[345979451,1734594627171,-87.06616257,0.00021917,4]
[345979452,1734594627199,-381.51129183,0.00021917,4]
[345979453,1734594627222,-500.0,0.00021917,4]
[345979454,1734594627249,-500.0,0.00021917,4]
[345979455,1734594627276,-500.0,0.00021917,4]
[345979456,1734594627300,-500.0,0.00021917,4]
[345979457,1734594627324,-500.0,0.00021917,4]
[345979458,1734594627349,-553.71,0.00021917,4]
[345979459,1734594627372,-500.0,0.00021917,4]
[345979460,1734594627395,-500.0,0.00021917,4]
[345979461,1734594627422,-500.0,0.00021917,4]
[345979462,1734594627446,-491.4635506,0.00021917,4]
[345979463,1734594627469,-500.74,0.00021917,4]
[345979464,1734594627493,-500.0,0.00021917,4]
[345979465,1734594627518,-500.0,0.00021917,4]
[345979466,1734594627541,-510.86089077,0.00021917,4]
[345979467,1734594627565,-500.0,0.00021917,4]
[345979468,1734594627589,-500.0,0.00021917,4]
[345979469,1734594627613,-610.04642673,0.00021917,4]
[345979470,1734594627639,-500.0,0.00021917,4]
[345979471,1734594627663,-500.0,0.00021917,4]
[345979472,1734594627687,-500.0,0.00021917,4]
[345979473,1734594627713,-158.99320738,0.00021917,4]
[345979474,1734594627738,-500.0,0.00021917,4]
[345979475,1734594627761,-500.0,0.00021917,4]
[345979476,1734594627784,-500.0,0.00021917,4]
[345979477,1734594627808,-500.0,0.00021917,4]
[345979478,1734594627833,-500.0,0.00021917,4]
[345979479,1734594627857,-500.0,0.00021917,4]
[345979480,1734594627879,-509.4336607,0.00021917,4]
[345979481,1734594627902,-500.0,0.00021917,4]
[345979482,1734594627925,-603.26,0.00021917,4]
[345979483,1734594627949,-500.0,0.00021917,4]
[345979484,1734594627972,-500.0,0.00021917,4]
[345979485,1734594627995,-500.0,0.00021917,4]
[345979486,1734594628020,-500.0,0.00021917,4]
[345979487,1734594628043,-579.64,0.00021917,4]
[345979488,1734594628067,-500.0,0.00021917,4]
[345979489,1734594628090,-500.0,0.00021917,4]
[345979490,1734594628114,-500.0,0.00021917,4]
[345979491,1734594628138,-500.0,0.00021917,4]
[345979492,1734594628163,-500.0,0.00021917,4]
[345979493,1734594628189,-500.0,0.00021917,4]
[345979494,1734594628214,-500.0,0.00021917,4]
[345979495,1734594628240,-500.0,0.00021917,4]
[345979496,1734594628267,-500.0,0.00021917,4]
[345979497,1734594628292,-500.0,0.00021917,4]
[345979498,1734594628316,-482.13088588,0.00021917,4]
[345979499,1734594628340,-176.44912299,0.00021917,4]
[345979500,1734594628366,-500.0,0.00021917,4]
[345979501,1734594628390,-500.0,0.00021917,4]
[345979502,1734594628606,-500.0,0.00021917,4]
[345979503,1734594628631,-500.0,0.00021917,4]
[345979504,1734594628655,-500.0,0.00021917,4]
[345979505,1734594628678,-504.24239673,0.00021917,4]
[345979506,1734594628702,-500.0,0.00021917,4]
[345979507,1734594628725,-500.0,0.00021917,4]
[345979508,1734594628749,-500.0,0.00021917,4]
[345979509,1734594628775,-500.0,0.00021917,4]
[345979510,1734594628798,-500.0,0.00021917,4]
[345979511,1734594628821,-500.0,0.00021917,4]
[345979512,1734594628845,-612.52,0.00021917,4]
[345979513,1734594628868,-533.93915581,0.00021917,4]
[345979514,1734594628892,-500.0,0.00021917,4]
[345979515,1734594628915,-500.0,0.00021917,4]
[345979516,1734594628937,-500.0,0.00021917,4]
[345979517,1734594628962,-500.0,0.00021917,4]
[345979518,1734594628986,-500.0,0.00021917,4]
[345979519,1734594629011,-500.0,0.00021917,4]
[345979520,1734594629035,-500.0,0.00021917,4]
[345979521,1734594629060,-500.0,0.00021917,4]
[345979522,1734594629084,-1624.05,0.00021917,4]
[345979523,1734594629107,-500.0,0.00021917,4]
[345979524,1734594629131,-500.0,0.00021917,4]
[345979525,1734594629154,-503.80465613,0.00021917,4]
[345979526,1734594629178,-500.0,0.00021917,4]
[345979527,1734594629206,-500.0,0.00021917,4]
[345979528,1734594629231,-500.0,0.00021917,4]
[345979529,1734594629253,-500.0,0.00021917,4]
[345979530,1734594629281,-500.0,0.00021917,4]
[345979531,1734594629306,-500.0,0.00021917,4]
[345979532,1734594629330,-3.47663388,0.00021917,4]
[345979537,1734594632093,-496.52336612,0.00021917,4]
[345979538,1734594632102,-500.0,0.00021917,4]
[345979539,1734594632112,-500.0,0.00021917,4]
[345979540,1734594632121,-500.0,0.00021917,4]
[345979541,1734594632131,-500.0,0.00021917,4]
[345979542,1734594632140,-500.0,0.00021917,4]
[345979543,1734594632149,-500.0,0.00021917,4]
[345979544,1734594632158,-500.0,0.00021917,4]
[345979545,1734594632167,-500.0,0.00021917,4]
[345979546,1734594632176,-900.07,0.00021917,4]
[345979547,1734594632188,-500.0,0.00021917,4]
[345979548,1734594632198,-500.0,0.00021917,4]
[345979549,1734594632207,-631.15,0.00021917,4]
[345979550,1734594632216,-500.0,0.00021917,4]
[345979551,1734594632225,-500.0,0.00021917,4]
[345979552,1734594632237,-500.0,0.00021917,4]
[345979553,1734594632246,-3405.79,0.00021917,4]
[345979554,1734594632256,-500.0,0.00021917,4]
[345979555,1734594632267,-1114.18,0.00021917,4]
[345979556,1734594632276,-500.0,0.00021917,4]
[345979557,1734594632286,-500.0,0.00021917,4]
[345979558,1734594632295,-500.0,0.00021917,4]
[345979559,1734594632304,-562.97,0.00021917,4]
[345979560,1734594632313,-500.0,0.00021917,4]
[345979561,1734594632323,-900.46,0.00021917,4]
[345979562,1734594632332,-1241.16,0.00021917,4]
[345979563,1734594632341,-500.0,0.00021917,4]
[345979564,1734594632351,-500.0,0.00021917,4]
[345979565,1734594632360,-500.0,0.00021917,4]
[345979566,1734594632369,-950.93,0.00021917,4]
[345979567,1734594632378,-500.0,0.00021917,4]
[345979568,1734594632387,-182.16857535,0.00021917,4]
[345979569,1734594632396,-519.52,0.00021917,4]
[345979570,1734594632405,-527.31465464,0.00021917,4]
[345979571,1734594632414,-500.0,0.00021917,4]
[345979572,1734594632423,-523.92,0.00021917,4]
[345979573,1734594632432,-172.84347569,0.00021917,4]
[345979574,1734594632455,-327.15652431,0.00021917,4]
[345979575,1734594632465,-557.89,0.00021917,4]
[345979576,1734594632474,-500.0,0.00021917,4]
[345979577,1734594632484,-552.97,0.00021917,4]
[345979578,1734594632492,-500.0,0.00021917,4]
[345979580,1734594632502,-500.0,0.00021917,4]
[345979581,1734594632513,-500.0,0.00021917,4]
[345979583,1734594632522,-249.94509079,0.00021917,4]
[345979586,1734594632546,-250.05490921,0.00021917,4]
[345979587,1734594632556,-500.0,0.00021917,4]
[345979588,1734594632565,-500.0,0.00021917,4]
[345979589,1734594632574,-477.43869079,0.00021917,4]
[345979591,1734594632699,-22.56130921,0.00021917,4]
[345979593,1734594632709,-164.79167956,0.00021917,4]
[345979595,1734594632718,-354.78000573,0.00021917,4]
[345979628,1734594637897,-145.21999427,0.00021917,4]
[345979630,1734594637907,-611.56,0.00021917,4]
[345979631,1734594637916,-500.0,0.00021917,4]
[345979633,1734594637926,-500.0,0.00021917,4]
[345979634,1734594637935,-436.37449407,0.00021917,4]
[345979638,1734594638321,-563.62550593,0.00021917,4]
[345979639,1734594638331,-500.0,0.00021917,4]
[345979640,1734594638340,-547.69,0.00021917,4]
[345979641,1734594638350,-500.0,0.00021917,4]
[345979642,1734594638359,-113.10891677,0.00021917,4]
[345979643,1734594638371,-552.36108323,0.00021917,4]
[345979644,1734594638380,-537.54,0.00021917,4]
[345979645,1734594638390,-659.2,0.00021917,4]
[345979646,1734594638400,-599.49,0.00021917,4]
[345979647,1734594638410,-500.0,0.00021917,4]
[345979648,1734594638419,-508.03819043,0.00021917,4]
[345979649,1734594638429,-1632.51,0.00021917,4]
[345979650,1734594638438,-635.59147727,0.00021917,4]
[345979651,1734594638448,-1327.27,0.00021917,4]
[345979652,1734594638457,-1410.34,0.00021917,4]
[345979653,1734594638467,-500.0,0.00021917,4]
[345979654,1734594638476,-500.0,0.00021917,4]
[345979655,1734594638485,-500.0,0.00021917,4]
[345979656,1734594638494,-323.98540841,0.00021917,4]
[345979660,1734594640154,-176.01459159,0.00021917,4]
[345979661,1734594640163,-229.68540841,0.00021917,4]
[345979662,1734594640244,-442.05459159,0.00021917,4]
[345979663,1734594640254,-500.0,0.00021917,4]
[345979664,1734594640264,-775.95,0.00021917,4]
[345979665,1734594640276,-786.96,0.00021917,4]
[345979666,1734594640286,-500.0,0.00021917,4]
[345979667,1734594640295,-500.0,0.00021917,4]
[345979668,1734594640304,-730.93,0.00021917,4]
[345979669,1734594640313,-784.28,0.00021917,4]
[345979670,1734594640323,-500.0,0.00021917,4]
[345979671,1734594640332,-500.0,0.00021917,4]
[345979672,1734594640341,-500.0,0.00021917,4]
[345979673,1734594640350,-500.0,0.00021917,4]
[345979674,1734594640360,-500.0,0.00021917,4]
[345979675,1734594640370,-794.81,0.00021917,4]
[345979676,1734594640379,-1047.83,0.00021917,4]
[345979677,1734594640388,-500.0,0.00021917,4]
[345979678,1734594640398,-500.0,0.00021917,4]
[345979679,1734594640407,-500.0,0.00021917,4]
[345979680,1734594640416,-993.85,0.00021917,4]
[345979681,1734594640426,-500.0,0.00021917,4]
[345979682,1734594640444,-2127.12,0.00021917,4]
[345979683,1734594640455,-500.0,0.00021917,4]
[345979684,1734594640465,-1761.13,0.00021917,4]
[345979685,1734594640474,-432.97005327,0.00021917,4]
[345979686,1734594640485,-500.0,0.00021917,4]
[345979687,1734594640495,-500.0,0.00021917,4]